[Event "1st Bangalore GM-Open-A 2024"]
[Site "Bangalore"]
[Date "2024.01.18"]
[Round "1.19"]
[White "Fedorov, Alexei"]
[Black "Nagare Kaivalya Sandip"]
[Result "1-0"]
[ECO "C55"]
[WhiteElo "2457"]
[BlackElo "2095"]
[Annotator "RC"]
[PlyCount "85"]
[EventDate "2024.01.20"]
[EventType "swiss"]
[EventCountry "IND"]
[SourceTitle "playchess.com"]
[Source "ChessBase"]
[SourceQuality "1"]
[TimeControl "5400+30"]

1. e4 {[%emt 0:17:33]} e5 {[%emt 0:00:19]} 2. Nf3 {[%emt 0:00:25]} Nc6 {[%emt 0:00:04]} 3. Bc4 {[%emt 0:00:06]} Nf6 {[%emt 0:00:04]} 4. d3 {[%emt 0:00:07]} Be7 {[%emt 0:00:13]} 5. O-O {[%emt 0:00:14]} O-O {[%emt 0:00:10]} 6. Re1 {[%emt 0:00:10]} d6 {[%emt 0:00:21]} 7. a3 {[%emt 0:01:39]} h6 {[%emt 0:15:18]} 8. Nbd2 {[%emt 0:02:42]} Be6 {[%emt 0:00:35]} 9. c3 {[%emt 0:01:48]} Qd7 {[%emt 0:05:56]} 10. h3 {[%emt 0:00:10]} Rad8 {[%emt 0:01:02]} 11. Bxe6 {[%emt 0:00:10]} Qxe6 {[%emt 0:08:02]} 12. d4 {[%emt 0:00:28]} exd4 {[%emt 0:01:14]} 13. cxd4 {[%emt 0:00:04]} d5 {[%emt 0:00:33]} 14. e5 {[%emt 0:00:19]} Ne4 {[%emt 0:03:03]} 15. Qb3 {[%emt 0:07:21]} Na5 {[%emt 0:04:54]} 16. Qd3 {[%emt 0:10:21]} Nxd2 {[%emt 0:03:15]} 17. Bxd2 {[%emt 0:00:16]} Nc4 {[%emt 0:00:30]} 18. Bc3 {[%emt 0:00:41]} b5 {[%emt 0:02:27]} 19. Rec1 {[%emt 0:11:07]} c6 {[%emt 0:04:48]} 20. b3 {[%emt 0:00:32]} Nb6 {[%emt 0:05:53]} 21. Bb4 {[%emt 0:00:49]} Rc8 {[%emt 0:00:33]} 22. Qc3 {[%emt 0:03:04]} Rfe8 {[%emt 0:02:10]} 23. Bxe7 {[%emt 0:03:30]} Qxe7 {[%emt 0:00:09]} 24. Qa5 {[%emt 0:00:49]} Qc7 {[%emt 0:11:45]} 25. Ne1 {[%emt 0:05:14]} Nd7 {[%emt 0:01:45]} 26. Qxc7 {[%emt 0:01:02]} Rxc7 {[%emt 0:00:03]} 27. Nd3 {[%emt 0:00:59]} a5 {[%emt 0:03:47]} 28. f4 {[%emt 0:08:28]} a4 {[%emt 0:02:19]} 29. bxa4 {[%emt 0:00:25]} bxa4 {[%emt 0:00:05]} 30. Rab1 {[%emt 0:00:48]} Rec8 {[%emt 0:03:25]} 31. Nc5 {[%emt 0:00:41]} Nf8 {[%emt 0:00:48]} 32. f5 {[%emt 0:02:06]} Ra7 {[%emt 0:03:54]} 33. Rb6 {[%emt 0:00:32]} Ra5 {[%emt 0:01:47]} 34. Nd3 {[%emt 0:01:06]} g6 {[%emt 0:00:22]} 35. g4 {[%emt 0:00:17]} Nh7 {[%emt 0:07:07]} 36. Rbxc6 {[%emt 0:00:23]} Rxc6 {[%emt 0:00:05]} 37. Rxc6 {[%emt 0:00:05]} Ng5 {[%emt 0:00:08]} 38. Kg2 {[%emt 0:00:51]} Ne4 {[%emt 0:00:48]} 39. Rc8+ {[%emt 0:02:23]} Kh7 {[%emt 0:00:19]} 40. Rc7 {[%emt 0:01:56]} Kg8 {[%emt 0:00:32]} 41. Nb4 {[%emt 0:02:58]} Nd2 {[%emt 0:00:26]} 42. e6 {[%emt 0:00:41]} fxe6 {[%emt 0:00:15]} 43. fxe6 {[%emt 0:00:07]} 1-0

[Event "1st Bangalore GM-Open-A 2024"]
[Site "Bangalore"]
[Date "2024.01.18"]
[Round "1.20"]
[White "Muhammed, Shuaau"]
[Black "Neelash Saha"]
[Result "0-1"]
[ECO "B51"]
[WhiteElo "2093"]
[BlackElo "2446"]
[Annotator "RC"]
[PlyCount "156"]
[EventDate "2024.01.20"]
[EventType "swiss"]
[EventCountry "IND"]
[SourceTitle "playchess.com"]
[Source "ChessBase"]
[SourceQuality "1"]
[TimeControl "5400+30"]

1. e4 {[%emt 0:00:02]} c5 {[%emt 0:00:22]} 2. Nf3 {[%emt 0:00:03]} d6 {[%emt 0:00:13]} 3. Bb5+ {[%emt 0:00:17]} Nd7 {[%emt 0:00:14]} 4. c4 {[%emt 0:00:45]} Ngf6 {[%emt 0:01:26]} 5. Nc3 {[%emt 0:00:16]} e6 {[%emt 0:00:29]} 6. O-O {[%emt 0:01:04]} Be7 {[%emt 0:00:06]} 7. d3 {[%emt 0:02:42]} O-O {[%emt 0:00:08]} 8. h3 {[%emt 0:01:49]} Nb6 {[%emt 0:02:03]} 9. Na4 {[%emt 0:02:54]} Nfd7 {[%emt 0:01:19]} 10. Bd2 {[%emt 0:06:11]} a6 {[%emt 0:00:53]} 11. Bxd7 {[%emt 0:01:26]} Nxd7 {[%emt 0:01:17]} 12. Nc3 {[%emt 0:01:04]} b6 {[%emt 0:01:01]} 13. a3 {[%emt 0:01:43]} Bb7 {[%emt 0:00:15]} 14. b4 {[%emt 0:02:01]} f5 {[%emt 0:07:00]} 15. Qe2 {[%emt 0:02:47]} fxe4 {[%emt 0:07:05]} 16. dxe4 {[%emt 0:01:01]} Bf6 {[%emt 0:02:58]} 17. Rac1 {[%emt 0:03:04]} Qe8 {[%emt 0:01:43]} 18. Bg5 {[%emt 0:04:07]} Bd4 {[%emt 0:02:20]} 19. Rfd1 {[%emt 0:03:57]} Qg6 {[%emt 0:00:09]} 20. Be7 {[%emt 0:01:20]} Rf7 {[%emt 0:00:10]} 21. Bxd6 {[%emt 0:05:34]} e5 {[%emt 0:00:06]} 22. bxc5 {[%emt 0:00:15]} bxc5 {[%emt 0:01:53]} 23. Bc7 {[%emt 0:03:58]} Rc8 {[%emt 0:06:46]} 24. Ba5 {[%emt 0:00:53]} Rcf8 {[%emt 0:01:17]} 25. Nxd4 {[%emt 0:09:13]} Rxf2 {[%emt 0:10:13]} 26. Qg4 {[%emt 0:02:53]} exd4 {[%emt 0:03:08]} 27. Qxg6 {[%emt 0:01:30]} hxg6 {[%emt 0:00:05]} 28. Nd5 {[%emt 0:00:47]} Ra2 {[%emt 0:01:28]} 29. Ra1 {[%emt 0:07:18]} Rff2 {[%emt 0:02:06]} 30. Rxa2 {[%emt 0:00:03]} Rxa2 {[%emt 0:00:06]} 31. Bc7 {[%emt 0:01:46]} Re2 {[%emt 0:03:49]} 32. Rb1 {[%emt 0:03:13]} Ba8 {[%emt 0:00:44]} 33. Kf1 {[%emt 0:02:51]} Rxe4 {[%emt 0:00:47]} 34. Nb6 {[%emt 0:00:05]} Nxb6 {[%emt 0:03:03]} 35. Rxb6 {[%emt 0:00:16]} d3 {[%emt 0:02:55]} 36. Rxa6 {[%emt 0:08:15]} d2 {[%emt 0:01:26]} 37. Rxa8+ {[%emt 0:00:03]} Kf7 {[%emt 0:00:05]} 38. Rd8 {[%emt 0:00:05]} Re1+ {[%emt 0:00:02]} 39. Kf2 {[%emt 0:00:01]} d1=Q {[%emt 0:00:08]} 40. Rxd1 {[%emt 0:00:13]} Rxd1 {[%emt 0:00:05]} 41. Bb6 {[%emt 0:00:15]} Rd2+ {[%emt 0:00:37]} 42. Kg1 {[%emt 0:00:42]} Rc2 {[%emt 0:00:20]} 43. Bxc5 {[%emt 0:00:02]} Rxc4 {[%emt 0:00:16]} 44. Bb4 {[%emt 0:00:03]} g5 {[%emt 0:00:14]} 45. Kf2 {[%emt 0:00:17]} g4 {[%emt 0:00:08]} 46. hxg4 {[%emt 0:00:46]} Rxg4 {[%emt 0:00:05]} 47. Kf3 {[%emt 0:00:09]} Rc4 {[%emt 0:00:05]} 48. g3 {[%emt 0:04:06]} Ke6 {[%emt 0:00:19]} 49. Bf8 {[%emt 0:07:25]} Rc7 {[%emt 0:01:20]} 50. Bb4 {[%emt 0:01:19]} Kf5 {[%emt 0:00:37]} 51. Bd2 {[%emt 0:01:56]} Rc4 {[%emt 0:00:42]} 52. Bb4 {[%emt 0:00:59]} Rd4 {[%emt 0:00:50]} 53. Ke3 {[%emt 0:00:11]} Re4+ {[%emt 0:00:05]} 54. Kf3 {[%emt 0:00:04]} g5 {[%emt 0:00:57]} 55. Bd2 {[%emt 0:01:57]} g4+ {[%emt 0:00:48]} 56. Kf2 {[%emt 0:00:32]} Ke5 {[%emt 0:00:50]} 57. Be3 {[%emt 0:01:42]} Ra4 {[%emt 0:00:35]} 58. Bc5 {[%emt 0:01:00]} Rc4 {[%emt 0:00:20]} 59. Bb4 {[%emt 0:00:49]} Re4 {[%emt 0:00:52]} 60. Bc3+ {[%emt 0:01:50]} Kd5 {[%emt 0:00:09]} 61. Be1 {[%emt 0:00:47]} Kc5 {[%emt 0:00:32]} 62. Kf1 {[%emt 0:00:15]} Kb5 {[%emt 0:00:05]} 63. Kf2 {[%emt 0:00:32]} Ka4 {[%emt 0:00:12]} 64. Bb4 {[%emt 0:00:29]} Kb3 {[%emt 0:00:05]} 65. Kf1 {[%emt 0:00:57]} Kc2 {[%emt 0:00:08]} 66. Kf2 {[%emt 0:00:50]} Kd3 {[%emt 0:00:06]} 67. Bd6 {[%emt 0:03:21]} Re2+ {[%emt 0:00:28]} 68. Kf1 {[%emt 0:00:07]} Ra2 {[%emt 0:00:28]} 69. Kg1 {[%emt 0:00:30]} Ke3 {[%emt 0:00:08]} 70. Kf1 {[%emt 0:00:33]} Kf3 {[%emt 0:00:29]} 71. Kg1 {[%emt 0:00:40]} Rd2 {[%emt 0:00:21]} 72. Bc7 {[%emt 0:00:17]} Rd7 {[%emt 0:00:17]} 73. Be5 {[%emt 0:00:57]} Rd3 {[%emt 0:00:43]} 74. a4 {[%emt 0:00:48]} Ra3 {[%emt 0:00:05]} 75. a5 {[%emt 0:00:20]} Rxa5 {[%emt 0:00:05]} 76. Bc3 {[%emt 0:00:04]} Rc5 {[%emt 0:00:11]} 77. Be1 {[%emt 0:00:31]} Rc2 {[%emt 0:00:26]} 78. Kh1 {[%emt 0:00:47]} Re2 {[%emt 0:00:09]} 0-1

[Event "1st Bangalore GM-Open-A 2024"]
[Site "Bangalore"]
[Date "2024.01.18"]
[Round "1.21"]
[White "Shyaamnikhil P"]
[Black "Makhija, Aashna"]
[Result "1-0"]
[ECO "C68"]
[WhiteElo "2443"]
[BlackElo "2093"]
[Annotator "RC"]
[PlyCount "79"]
[EventDate "2024.01.20"]
[EventType "swiss"]
[EventCountry "IND"]
[SourceTitle "playchess.com"]
[Source "ChessBase"]
[SourceQuality "1"]
[TimeControl "5400+30"]

1. e4 {[%emt 0:00:12]} e5 {[%emt 0:00:13]} 2. Nf3 {[%emt 0:00:07]} Nc6 {[%emt 0:00:09]} 3. Bb5 {[%emt 0:00:03]} a6 {[%emt 0:00:09]} 4. Bxc6 {[%emt 0:00:54]} dxc6 {[%emt 0:00:21]} 5. d4 {[%emt 0:00:05]} exd4 {[%emt 0:00:18]} 6. Qxd4 {[%emt 0:00:05]} Qxd4 {[%emt 0:00:18]} 7. Nxd4 {[%emt 0:00:05]} Bd7 {[%emt 0:00:36]} 8. Nc3 {[%emt 0:01:46]} O-O-O {[%emt 0:03:06]} 9. Bg5 {[%emt 0:00:16]} f6 {[%emt 0:03:28]} 10. Be3 {[%emt 0:00:07]} Bb4 {[%emt 0:02:02]} 11. Nde2 {[%emt 0:00:21]} Ne7 {[%emt 0:03:47]} 12. a3 {[%emt 0:01:01]} Bd6 {[%emt 0:02:11]} 13. O-O-O {[%emt 0:04:58]} Be6 {[%emt 0:07:42]} 14. Nf4 {[%emt 0:04:55]} Bf7 {[%emt 0:02:03]} 15. Nd3 {[%emt 0:00:07]} Ng6 {[%emt 0:03:16]} 16. f4 {[%emt 0:01:15]} Rhe8 {[%emt 0:05:04]} 17. g3 {[%emt 0:04:08]} b6 {[%emt 0:04:57]} 18. Rd2 {[%emt 0:02:14]} h5 {[%emt 0:02:53]} 19. Rhd1 {[%emt 0:00:46]} c5 {[%emt 0:16:14]} 20. Nf2 {[%emt 0:05:10]} h4 {[%emt 0:07:31]} 21. b3 {[%emt 0:09:58]} Rh8 {[%emt 0:03:15]} 22. Kb2 {[%emt 0:03:09]} hxg3 {[%emt 0:04:22]} 23. hxg3 {[%emt 0:00:06]} Rh2 {[%emt 0:02:03]} 24. Ng4 {[%emt 0:01:43]} Rh3 {[%emt 0:08:49]} 25. Bf2 {[%emt 0:00:48]} Re8 {[%emt 0:06:34]} 26. Re1 {[%emt 0:03:17]} Rh5 {[%emt 0:03:12]} 27. Ne3 {[%emt 0:02:28]} Ne7 {[%emt 0:03:54]} 28. Red1 {[%emt 0:00:46]} g5 {[%emt 0:05:24]} 29. Rxd6 {[%emt 0:02:49]} cxd6 {[%emt 0:00:23]} 30. Rxd6 {[%emt 0:00:05]} gxf4 {[%emt 0:00:37]} 31. gxf4 {[%emt 0:00:07]} f5 {[%emt 0:00:34]} 32. Rxb6 {[%emt 0:02:37]} Rh2 {[%emt 0:00:27]} 33. Ned1 {[%emt 0:03:02]} Kc7 {[%emt 0:00:36]} 34. Bxc5 {[%emt 0:02:03]} fxe4 {[%emt 0:00:26]} 35. Rf6 {[%emt 0:02:03]} Bg8 {[%emt 0:00:29]} 36. Ne3 {[%emt 0:00:12]} a5 {[%emt 0:00:31]} 37. Nb5+ {[%emt 0:04:30]} Kd7 {[%emt 0:00:26]} 38. Rd6+ {[%emt 0:00:06]} Kc8 {[%emt 0:00:08]} 39. Ra6 {[%emt 0:00:16]} Kb8 {[%emt 0:01:01]} 40. Rb6+ {[%emt 0:00:27]} 1-0

[Event "1st Bangalore GM-Open-A 2024"]
[Site "Bangalore"]
[Date "2024.01.18"]
[Round "1.22"]
[White "Dhyey Agarwal"]
[Black "Sammed Jaykumar, Shete"]
[Result "0-1"]
[ECO "A28"]
[WhiteElo "2087"]
[BlackElo "2441"]
[Annotator "RC"]
[PlyCount "56"]
[EventDate "2024.01.20"]
[EventType "swiss"]
[EventCountry "IND"]
[SourceTitle "playchess.com"]
[Source "ChessBase"]
[SourceQuality "1"]
[TimeControl "5400+30"]

1. c4 {[%emt 0:00:05]} e5 {[%emt 0:00:08]} 2. Nc3 {[%emt 0:00:09]} Nf6 {[%emt 0:00:06]} 3. Nf3 {[%emt 0:00:27]} Nc6 {[%emt 0:00:26]} 4. e3 {[%emt 0:00:24]} d6 {[%emt 0:02:34]} 5. d4 {[%emt 0:02:29]} Bd7 {[%emt 0:02:26]} 6. d5 {[%emt 0:02:15]} Ne7 {[%emt 0:03:48]} 7. e4 {[%emt 0:02:29]} g6 {[%emt 0:00:08]} 8. c5 {[%emt 0:04:54]} Bg7 {[%emt 0:01:30]} 9. Qb3 {[%emt 0:06:08]} O-O {[%emt 0:09:01]} 10. Qxb7 {[%emt 0:04:44]} dxc5 {[%emt 0:02:05]} 11. Be3 {[%emt 0:04:25]} Rb8 {[%emt 0:06:03]} 12. Qxa7 {[%emt 0:03:54]} Rxb2 {[%emt 0:00:30]} 13. Qa3 {[%emt 0:03:07]} Qb8 {[%emt 0:01:06]} 14. Bxc5 {[%emt 0:00:59]} Nxe4 {[%emt 0:01:39]} 15. Nxe4 {[%emt 0:30:59]} Rb1+ {[%emt 0:00:47]} 16. Kd2 {[%emt 0:07:45]} Rxa1 {[%emt 0:02:31]} 17. Bxe7 {[%emt 0:05:51]} Qb1 {[%emt 0:01:22]} 18. Bc4 {[%emt 0:04:12]} Qxh1 {[%emt 0:03:05]} 19. Bxf8 {[%emt 0:06:47]} Qd1+ {[%emt 0:01:02]} 20. Ke3 {[%emt 0:00:35]} Bxf8 {[%emt 0:00:29]} 21. Qa8 {[%emt 0:00:21]} Bf5 {[%emt 0:07:26]} 22. d6 {[%emt 0:04:13]} Bxe4 {[%emt 0:01:30]} 23. Kxe4 {[%emt 0:01:06]} Qc2+ {[%emt 0:02:20]} 24. Bd3 {[%emt 0:01:59]} f5+ {[%emt 0:00:21]} 25. Ke3 {[%emt 0:00:26]} Qc5+ {[%emt 0:00:08]} 26. Ke2 {[%emt 0:00:03]} e4 {[%emt 0:00:40]} 27. Ng5 {[%emt 0:02:06]} exd3+ {[%emt 0:00:17]} 28. Kf3 {[%emt 0:00:07]} Qxd6 {[%emt 0:00:23]} 0-1

[Event "1st Bangalore GM-Open-A 2024"]
[Site "Bangalore"]
[Date "2024.01.18"]
[Round "1.23"]
[White "Nitish Belurkar"]
[Black "Arun Kataria"]
[Result "1-0"]
[ECO "B90"]
[WhiteElo "2435"]
[BlackElo "2079"]
[Annotator "RC"]
[PlyCount "69"]
[EventDate "2024.01.20"]
[EventType "swiss"]
[EventCountry "IND"]
[SourceTitle "playchess.com"]
[Source "ChessBase"]
[SourceQuality "1"]
[TimeControl "5400+30"]

1. e4 {[%emt 0:00:02]} c5 {[%emt 0:00:06]} 2. Nf3 {[%emt 0:00:04]} d6 {[%emt 0:00:05]} 3. d4 {[%emt 0:00:04]} cxd4 {[%emt 0:00:04]} 4. Nxd4 {[%emt 0:00:04]} Nf6 {[%emt 0:00:05]} 5. Nc3 {[%emt 0:00:02]} a6 {[%emt 0:00:05]} 6. Nb3 {[%emt 0:00:14]} e5 {[%emt 0:02:14]} 7. h3 {[%emt 0:01:16]} Be6 {[%emt 0:00:52]} 8. Be3 {[%emt 0:01:39]} Nbd7 {[%emt 0:05:25]} 9. g4 {[%emt 0:00:48]} h6 {[%emt 0:03:43]} 10. Qd2 {[%emt 0:02:49]} Rc8 {[%emt 0:00:16]} 11. O-O-O {[%emt 0:05:59]} b5 {[%emt 0:01:40]} 12. f4 {[%emt 0:03:34]} Be7 {[%emt 0:09:52]} 13. Kb1 {[%emt 0:03:44]} Qc7 {[%emt 0:06:58]} 14. Bg2 {[%emt 0:27:29]} Nb6 {[%emt 0:08:26]} 15. Bxb6 {[%emt 0:01:49]} Qxb6 {[%emt 0:00:03]} 16. Nd5 {[%emt 0:00:10]} Bxd5 {[%emt 0:15:07]} 17. exd5 {[%emt 0:00:03]} Nd7 {[%emt 0:00:40]} 18. Na5 {[%emt 0:01:20]} O-O {[%emt 0:02:37]} 19. Nc6 {[%emt 0:01:01]} Rfe8 {[%emt 0:02:10]} 20. Be4 {[%emt 0:15:28]} Bh4 {[%emt 0:04:40]} 21. Rhf1 {[%emt 0:07:23]} Rc7 {[%emt 0:04:19]} 22. g5 {[%emt 0:02:35]} Nc5 {[%emt 0:09:15]} 23. Bf5 {[%emt 0:02:29]} exf4 {[%emt 0:06:57]} 24. gxh6 {[%emt 0:03:26]} Bg5 {[%emt 0:00:50]} 25. hxg7 {[%emt 0:00:44]} Re3 {[%emt 0:03:47]} 26. Rg1 {[%emt 0:03:00]} f6 {[%emt 0:02:47]} 27. h4 {[%emt 0:00:10]} Rxg7 {[%emt 0:00:20]} 28. hxg5 {[%emt 0:00:06]} fxg5 {[%emt 0:00:09]} 29. Qd4 {[%emt 0:00:32]} Qc7 {[%emt 0:01:21]} 30. Qf6 {[%emt 0:02:10]} Qf7 {[%emt 0:00:26]} 31. Qxd6 {[%emt 0:00:13]} Qxf5 {[%emt 0:01:04]} 32. Qxc5 {[%emt 0:00:06]} g4 {[%emt 0:00:53]} 33. Nd4 {[%emt 0:00:06]} Qh5 {[%emt 0:00:40]} 34. Qc8+ {[%emt 0:00:43]} Re8 {[%emt 0:00:02]} 35. Qf5 {[%emt 0:00:06]} 1-0

[Event "1st Bangalore GM-Open-A 2024"]
[Site "Bangalore"]
[Date "2024.01.18"]
[Round "1.24"]
[White "Ivana Maria, Furtado"]
[Black "Sharan, Rao"]
[Result "1/2-1/2"]
[ECO "D38"]
[WhiteElo "2072"]
[BlackElo "2433"]
[Annotator "RC"]
[PlyCount "202"]
[EventDate "2024.01.20"]
[EventType "swiss"]
[EventCountry "IND"]
[SourceTitle "playchess.com"]
[Source "ChessBase"]
[SourceQuality "1"]
[TimeControl "5400+30"]

1. d4 {[%emt 0:00:09]} Nf6 {[%emt 0:00:09]} 2. c4 {[%emt 0:00:54]} e6 {[%emt 0:00:08]} 3. Nf3 {[%emt 0:01:05]} d5 {[%emt 0:00:06]} 4. Nc3 {[%emt 0:00:28]} Bb4 {[%emt 0:00:07]} 5. Qa4+ {[%emt 0:00:45]} Nc6 {[%emt 0:00:05]} 6. a3 {[%emt 0:00:22]} Bxc3+ {[%emt 0:01:06]} 7. bxc3 {[%emt 0:00:28]} Bd7 {[%emt 0:04:41]} 8. Qc2 {[%emt 0:04:44]} O-O {[%emt 0:02:04]} 9. Bg5 {[%emt 0:01:09]} Na5 {[%emt 0:03:13]} 10. cxd5 {[%emt 0:07:56]} exd5 {[%emt 0:00:06]} 11. e3 {[%emt 0:01:11]} h6 {[%emt 0:00:26]} 12. Bh4 {[%emt 0:06:12]} c5 {[%emt 0:02:06]} 13. Bd3 {[%emt 0:11:46]} c4 {[%emt 0:07:59]} 14. Bh7+ {[%emt 0:12:23]} Kh8 {[%emt 0:00:24]} 15. Bf5 {[%emt 0:00:20]} Nb3 {[%emt 0:01:47]} 16. Rb1 {[%emt 0:04:02]} Ba4 {[%emt 0:02:52]} 17. Qb2 {[%emt 0:05:19]} a5 {[%emt 0:07:39]} 18. Ne5 {[%emt 0:02:06]} Ra6 {[%emt 0:04:48]} 19. O-O {[%emt 0:02:34]} Qd6 {[%emt 0:15:41]} 20. f3 {[%emt 0:06:12]} Nd7 {[%emt 0:05:15]} 21. Nxd7 {[%emt 0:06:15]} Bxd7 {[%emt 0:00:07]} 22. Bg3 {[%emt 0:00:07]} Qe7 {[%emt 0:01:11]} 23. Bxd7 {[%emt 0:00:16]} Qxd7 {[%emt 0:00:06]} 24. e4 {[%emt 0:00:13]} Re8 {[%emt 0:03:32]} 25. Rbe1 {[%emt 0:03:19]} Rae6 {[%emt 0:05:11]} 26. e5 {[%emt 0:00:08]} Ra6 {[%emt 0:00:04]} 27. Qc2 {[%emt 0:01:47]} g6 {[%emt 0:02:41]} 28. f4 {[%emt 0:03:29]} Qf5 {[%emt 0:00:43]} 29. Qxf5 {[%emt 0:00:20]} gxf5 {[%emt 0:00:04]} 30. Re2 {[%emt 0:01:01]} b5 {[%emt 0:06:13]} 31. Rd1 {[%emt 0:00:44]} Kg7 {[%emt 0:01:44]} 32. Be1 {[%emt 0:00:37]} Kf8 {[%emt 0:03:15]} 33. a4 {[%emt 0:02:30]} bxa4 {[%emt 0:01:32]} 34. Ra2 {[%emt 0:00:07]} Ke7 {[%emt 0:00:28]} 35. Rxa4 {[%emt 0:00:21]} Kd7 {[%emt 0:00:05]} 36. Kf2 {[%emt 0:02:31]} Kc6 {[%emt 0:00:06]} 37. Ke3 {[%emt 0:01:20]} Kb5 {[%emt 0:00:07]} 38. Ra3 {[%emt 0:00:12]} Rg8 {[%emt 0:01:00]} 39. g3 {[%emt 0:00:27]} h5 {[%emt 0:00:32]} 40. h4 {[%emt 0:04:03]} Rag6 {[%emt 0:00:55]} 41. Kf3 {[%emt 0:00:27]} Rd8 {[%emt 0:02:16]} 42. Bf2 {[%emt 0:01:02]} f6 {[%emt 0:01:42]} 43. Be3 {[%emt 0:01:49]} Rd7 {[%emt 0:00:17]} 44. Rg1 {[%emt 0:02:00]} Rg4 {[%emt 0:02:54]} 45. Rg2 {[%emt 0:01:26]} fxe5 {[%emt 0:00:44]} 46. fxe5 {[%emt 0:00:20]} Re4 {[%emt 0:00:18]} 47. Rg1 {[%emt 0:02:10]} Rg7 {[%emt 0:00:52]} 48. Rd1 {[%emt 0:03:07]} Rgg4 {[%emt 0:06:07]} 49. Bf4 {[%emt 0:01:04]} Kc6 {[%emt 0:00:36]} 50. Ra2 {[%emt 0:00:52]} Kd7 {[%emt 0:00:52]} 51. Rh1 {[%emt 0:00:36]} Ke6 {[%emt 0:00:17]} 52. Rb2 {[%emt 0:00:44]} Rg8 {[%emt 0:00:55]} 53. Ra2 {[%emt 0:00:22]} Rb8 {[%emt 0:00:38]} 54. Rd1 {[%emt 0:00:19]} Rb6 {[%emt 0:01:04]} 55. Ra4 {[%emt 0:00:35]} Kd7 {[%emt 0:00:43]} 56. Ra2 {[%emt 0:00:09]} Kc6 {[%emt 0:00:06]} 57. Ra4 {[%emt 0:00:49]} Kb5 {[%emt 0:00:27]} 58. Ra3 {[%emt 0:00:15]} a4 {[%emt 0:00:52]} 59. Be3 {[%emt 0:00:44]} Ra6 {[%emt 0:02:02]} 60. Bf4 {[%emt 0:01:00]} Rg6 {[%emt 0:01:17]} 61. Ra2 {[%emt 0:00:23]} Rg4 {[%emt 0:00:42]} 62. Rh1 {[%emt 0:00:39]} Ka5 {[%emt 0:00:05]} 63. Rd1 {[%emt 0:00:23]} Kb5 {[%emt 0:01:34]} 64. Rh1 {[%emt 0:00:36]} Rg8 {[%emt 0:00:36]} 65. Rd1 {[%emt 0:00:19]} Ra8 {[%emt 0:00:04]} 66. Ra3 {[%emt 0:00:02]} Ra7 {[%emt 0:00:17]} 67. Bg5 {[%emt 0:00:31]} Ra6 {[%emt 0:01:34]} 68. Bf4 {[%emt 0:00:09]} Kc6 {[%emt 0:01:25]} 69. Bg5 {[%emt 0:00:32]} Kd7 {[%emt 0:00:34]} 70. Bf4 {[%emt 0:00:12]} Ra8 {[%emt 0:00:04]} 71. Bg5 {[%emt 0:00:08]} Rg4 {[%emt 0:00:04]} 72. Bf4 {[%emt 0:00:12]} Rg6 {[%emt 0:00:10]} 73. Bg5 {[%emt 0:00:33]} Rb6 {[%emt 0:00:18]} 74. Bf4 {[%emt 0:02:26]} Ke6 {[%emt 0:00:01]} 75. Bg5 {[%emt 0:00:04]} Rb7 {[%emt 0:01:53]} 76. Be3 {[%emt 0:00:44]} Ra6 {[%emt 0:00:05]} 77. Re1 {[%emt 0:00:46]} Rg7 {[%emt 0:00:46]} 78. Bf4 {[%emt 0:00:29]} Ra8 {[%emt 0:00:29]} 79. Rd1 {[%emt 0:00:08]} Rb7 {[%emt 0:00:25]} 80. Be3 {[%emt 0:00:13]} Rg7 {[%emt 0:00:59]} 81. Bf4 {[%emt 0:00:10]} Kd7 {[%emt 0:00:05]} 82. Re1 {[%emt 0:00:29]} Rg6 {[%emt 0:00:07]} 83. Rd1 {[%emt 0:00:18]} Rg4 {[%emt 0:01:00]} 84. Re1 {[%emt 0:00:42]} Ke6 {[%emt 0:00:25]} 85. Rd1 {[%emt 0:00:08]} Rg7 {[%emt 0:00:04]} 86. Re1 {[%emt 0:00:25]} Ra5 {[%emt 0:00:07]} 87. Rd1 {[%emt 0:00:17]} Ra6 {[%emt 0:00:06]} 88. Re1 {[%emt 0:00:11]} Rb7 {[%emt 0:00:04]} 89. Be3 {[%emt 0:00:06]} Rbb6 {[%emt 0:00:27]} 90. Rd1 {[%emt 0:00:08]} Rb8 {[%emt 0:02:12]} 91. Re1 {[%emt 0:00:06]} Raa8 {[%emt 0:00:20]} 92. Rd1 {[%emt 0:00:08]} Ra6 {[%emt 0:01:53]} 93. Re1 {[%emt 0:00:10]} Rba8 {[%emt 0:00:17]} 94. Rd1 {[%emt 0:00:13]} Rg8 {[%emt 0:02:02]} 95. Bf4 {[%emt 0:00:16]} Ra5 {[%emt 0:00:10]} 96. Re1 {[%emt 0:00:12]} Rb8 {[%emt 0:00:04]} 97. Be3 {[%emt 0:00:05]} Ra6 {[%emt 0:00:05]} 98. Rd1 {[%emt 0:00:07]} Rba8 {[%emt 0:00:03]} 99. Re1 {[%emt 0:00:05]} Rg8 {[%emt 0:00:41]} 100. Rd1 {[%emt 0:00:15]} Rb8 {[%emt 0:00:06]} 101. Re1 {[%emt 0:00:04]} Rba8 {[%emt 0:00:03]} 1/2-1/2

[Event "1st Bangalore GM-Open-A 2024"]
[Site "Bangalore"]
[Date "2024.01.18"]
[Round "1.25"]
[White "Mohammad Nubairshah Shaikh"]
[Black "Priyanka, K."]
[Result "1/2-1/2"]
[ECO "D78"]
[WhiteElo "2428"]
[BlackElo "2068"]
[Annotator "RC"]
[PlyCount "90"]
[EventDate "2024.01.20"]
[EventType "swiss"]
[EventCountry "IND"]
[SourceTitle "playchess.com"]
[Source "ChessBase"]
[SourceQuality "1"]
[TimeControl "5400+30"]

1. Nf3 {[%emt 0:00:06]} Nf6 {[%emt 0:00:22]} 2. g3 {[%emt 0:00:06]} g6 {[%emt 0:00:08]} 3. b3 {[%emt 0:00:08]} Bg7 {[%emt 0:00:06]} 4. Bb2 {[%emt 0:00:03]} O-O {[%emt 0:00:58]} 5. Bg2 {[%emt 0:00:03]} c5 {[%emt 0:02:39]} 6. c4 {[%emt 0:00:04]} d6 {[%emt 0:00:15]} 7. d4 {[%emt 0:00:11]} d5 {[%emt 0:02:15]} 8. dxc5 {[%emt 0:17:29]} Qa5+ {[%emt 0:01:58]} 9. Nbd2 {[%emt 0:00:32]} dxc4 {[%emt 0:03:35]} 10. O-O {[%emt 0:01:03]} c3 {[%emt 0:03:46]} 11. Nc4 {[%emt 0:01:14]} Qxc5 {[%emt 0:00:17]} 12. Bxc3 {[%emt 0:00:20]} Nc6 {[%emt 0:02:05]} 13. Nfe5 {[%emt 0:01:51]} Nxe5 {[%emt 0:15:22]} 14. Bxe5 {[%emt 0:08:07]} Be6 {[%emt 0:02:18]} 15. Qd4 {[%emt 0:09:58]} Qxd4 {[%emt 0:09:36]} 16. Bxd4 {[%emt 0:02:13]} Nd5 {[%emt 0:01:59]} 17. Rfd1 {[%emt 0:06:06]} Rad8 {[%emt 0:03:18]} 18. Bxg7 {[%emt 0:23:06]} Kxg7 {[%emt 0:00:16]} 19. Rd3 {[%emt 0:00:01]} b5 {[%emt 0:09:33]} 20. Na3 {[%emt 0:01:35]} Nb4 {[%emt 0:07:46]} 21. Rxd8 {[%emt 0:05:36]} Rxd8 {[%emt 0:00:05]} 22. Nxb5 {[%emt 0:00:03]} Nxa2 {[%emt 0:01:31]} 23. Nxa7 {[%emt 0:05:33]} Bxb3 {[%emt 0:00:41]} 24. Nc6 {[%emt 0:00:02]} Rd1+ {[%emt 0:01:07]} 25. Rxd1 {[%emt 0:00:11]} Bxd1 {[%emt 0:00:05]} 26. Kf1 {[%emt 0:00:03]} Kf6 {[%emt 0:03:01]} 27. Ke1 {[%emt 0:00:02]} Ba4 {[%emt 0:00:22]} 28. Kd2 {[%emt 0:00:33]} Bxc6 {[%emt 0:01:44]} 29. Bxc6 {[%emt 0:00:02]} Nb4 {[%emt 0:00:47]} 30. Bb7 {[%emt 0:00:02]} Ke5 {[%emt 0:00:45]} 31. f4+ {[%emt 0:05:53]} Kd4 {[%emt 0:02:52]} 32. e3+ {[%emt 0:00:22]} Kc5 {[%emt 0:00:11]} 33. g4 {[%emt 0:00:10]} h6 {[%emt 0:01:23]} 34. h4 {[%emt 0:00:31]} Nd5 {[%emt 0:06:53]} 35. Kd3 {[%emt 0:02:11]} Nf6 {[%emt 0:01:06]} 36. g5 {[%emt 0:00:14]} hxg5 {[%emt 0:00:13]} 37. hxg5 {[%emt 0:00:06]} Ne8 {[%emt 0:02:31]} 38. Bf3 {[%emt 0:03:46]} Kd6 {[%emt 0:02:17]} 39. Bd1 {[%emt 0:00:31]} e5 {[%emt 0:03:12]} 40. Bb3 {[%emt 0:00:24]} exf4 {[%emt 0:04:25]} 41. Bxf7 {[%emt 0:00:16]} fxe3 {[%emt 0:00:24]} 42. Bxg6 {[%emt 0:03:43]} Ng7 {[%emt 0:00:28]} 43. Bf7 {[%emt 0:00:22]} Ne6 {[%emt 0:00:25]} 44. g6 {[%emt 0:00:22]} Nf4+ {[%emt 0:00:05]} 45. Kxe3 {[%emt 0:00:02]} Nxg6 {[%emt 0:00:06]} 1/2-1/2